[Event "57th Biel Festival MTO 2024"]
[White "Krishnan,Ritvik"]
[Black "Khulan,Enkhsaikhan"]
[Site "Biel"]
[Round "4.55"]
[Annotator "RC"]
[Result "0-1"]
[Date "2024.07.18"]
[WhiteElo "2297"]
[BlackElo "2063"]
[PlyCount "86"]
[TimeControl "60"]

1. e4 {[%emt 0:0:3]} e6 {[%emt 0:0:7]} 2. d4 {[%emt 0:0:5]} d5 {[%emt 0:0:7]} 3. Nc3 {[%emt 0:0:4]} Nf6 {[%emt 0:0:49]} 4. e5 {[%emt 0:0:5]} Nfd7 {[%emt 0:0:9]} 5. f4 {[%emt 0:0:8]} c5 {[%emt 0:0:26]} 6. Nf3 {[%emt 0:0:8]} Nc6 {[%emt 0:0:41]} 7. Be3 {[%emt 0:0:6]} cxd4 {[%emt 0:6:0]} 8. Nxd4 {[%emt 0:2:53]} Bc5 {[%emt 0:4:30]} 9. Qd2 {[%emt 0:0:25]} a6 {[%emt 0:0:40]} 10. O-O-O {[%emt 0:0:26]} Nxd4 {[%emt 0:1:15]} 11. Bxd4 {[%emt 0:1:21]} b5 {[%emt 0:1:39]} 12. f5 {[%emt 0:13:27]} Bxd4 {[%emt 0:1:19]} 13. Qxd4 {[%emt 0:1:45]} Qg5+ {[%emt 0:0:36]} 14. Kb1 {[%emt 0:0:13]} Qxf5 {[%emt 0:0:30]} 15. Re1 {[%emt 0:7:56]} Qg5 {[%emt 0:5:21]} 16. h4 {[%emt 0:5:53]} Qe7 {[%emt 0:1:0]} 17. g4 {[%emt 0:6:38]} Bb7 {[%emt 0:2:46]} 18. Rh3 {[%emt 0:4:2]} b4 {[%emt 0:6:2]} 19. Ne2 {[%emt 0:9:51]} a5 {[%emt 0:2:9]} 20. Nf4 {[%emt 0:6:26]} Ba6 {[%emt 0:5:3]} 21. Bxa6 {[%emt 0:8:38]} Rxa6 {[%emt 0:0:9]} 22. g5 {[%emt 0:1:22]} Rc6 {[%emt 0:3:13]} 23. Rg3 {[%emt 0:4:31]} Rc4 {[%emt 0:1:33]} 24. Qd2 {[%emt 0:2:51]} g6 {[%emt 0:4:53]} 25. h5 {[%emt 0:10:6]} Rg8 {[%emt 0:7:22]} 26. hxg6 {[%emt 0:7:22]} hxg6 {[%emt 0:0:13]} 27. b3 {[%emt 0:1:52]} Rc8 {[%emt 0:3:13]} 28. Rh1 {[%emt 0:4:17]} Nc5 {[%emt 0:1:37]} 29. Rg2 {[%emt 0:3:38]} Ne4 {[%emt 0:1:47]} 30. Qd3 {[%emt 0:0:43]} Nc3+ {[%emt 0:1:50]} 31. Kb2 {[%emt 0:1:1]} Qc7 {[%emt 0:2:44]} 32. Qa6 {[%emt 0:4:27]} Qc6 {[%emt 0:9:44]} 33. Qd3 {[%emt 0:0:53]} a4 {[%emt 0:1:7]} 34. Rgg1 {[%emt 0:1:36]} Ra8 {[%emt 0:1:2]} 35. Ra1 {[%emt 0:0:36]} a3+ {[%emt 0:1:3]} 36. Kc1 {[%emt 0:0:1]} Qc5 {[%emt 0:2:0]} 37. Rf1 {[%emt 0:1:8]} Ke7 {[%emt 0:1:36]} 38. Qf3 {[%emt 0:0:55]} Rgf8 {[%emt 0:1:55]} 39. Qh3 {[%emt 0:0:52]} Rh8 {[%emt 0:2:28]} 40. Qd3 {[%emt 0:0:30]} Rh2 {[%emt 0:4:42]} 41. Qf3 {[%emt 0:6:13]} Rxc2+ {[%emt 0:3:34]} 42. Kxc2 {[%emt 0:0:3]} Ne4+ {[%emt 0:0:11]} 43. Kd1 {[%emt 0:0:11]} Qd4+ {[%emt 0:0:15]} 0-1

[Event "57th Biel Festival MTO 2024"]
[White "Selinga,Jan"]
[Black "Mostertman,Milan"]
[Site "Biel"]
[Round "4.56"]
[Annotator "RC"]
[Result "0-1"]
[Date "2024.07.18"]
[WhiteElo "2023"]
[BlackElo "2231"]
[PlyCount "54"]
[TimeControl "60"]

1. d4 {[%emt 0:0:4]} d5 {[%emt 0:0:18]} 2. c4 {[%emt 0:1:10]} c6 {[%emt 0:0:12]} 3. Nc3 {[%emt 0:0:15]} Nf6 {[%emt 0:0:14]} 4. e3 {[%emt 0:1:4]} e6 {[%emt 0:3:39]} 5. Nf3 {[%emt 0:2:55]} Ne4 {[%emt 0:1:43]} 6. Bd3 {[%emt 0:5:17]} Bb4 {[%emt 0:2:21]} 7. Bd2 {[%emt 0:2:7]} Nxd2 {[%emt 0:8:36]} 8. Nxd2 {[%emt 0:1:39]} e5 {[%emt 0:15:13]} 9. cxd5 {[%emt 0:16:49]} exd4 {[%emt 0:5:9]} 10. exd4 {[%emt 0:1:17]} O-O {[%emt 0:4:13]} 11. O-O {[%emt 0:1:44]} Bxc3 {[%emt 0:6:40]} 12. bxc3 {[%emt 0:6:48]} Qxd5 {[%emt 0:0:41]} 13. Rb1 {[%emt 0:8:44]} Nd7 {[%emt 0:6:23]} 14. Re1 {[%emt 0:3:52]} Nf6 {[%emt 0:11:43]} 15. Re5 {[%emt 0:2:50]} Qd6 {[%emt 0:0:33]} 16. Qe2 {[%emt 0:14:57]} b5 {[%emt 0:9:8]} 17. Ne4 {[%emt 0:3:19]} Nxe4 {[%emt 0:2:51]} 18. Qxe4 {[%emt 0:0:57]} g6 {[%emt 0:0:5]} 19. a4 {[%emt 0:11:49]} a6 {[%emt 0:5:42]} 20. Qh4 {[%emt 0:3:44]} Be6 {[%emt 0:6:39]} 21. Qh6 {[%emt 0:0:47]} f5 {[%emt 0:6:12]} 22. h4 {[%emt 0:2:37]} bxa4 {[%emt 0:2:31]} 23. Rbe1 {[%emt 0:3:22]} Bd5 {[%emt 0:4:44]} 24. h5 {[%emt 0:5:9]} Qf6 {[%emt 0:0:25]} 25. Re7 {[%emt 0:1:42]} Rf7 {[%emt 0:0:55]} 26. hxg6 {[%emt 0:0:57]} Rxe7 {[%emt 0:1:15]} 27. gxh7+ {[%emt 0:0:37]} Kf7 {[%emt 0:0:2]} 0-1

[Event "57th Biel Festival MTO 2024"]
[White "Ohler,Julius"]
[Black "Tellarini,Lorenzo"]
[Site "Biel"]
[Round "4.57"]
[Annotator "RC"]
[Result "1/2-1/2"]
[Date "2024.07.18"]
[WhiteElo "2078"]
[BlackElo "1953"]
[PlyCount "64"]
[TimeControl "60"]

1. d4 {[%emt 0:1:41]} Nf6 {[%emt 0:0:4]} 2. c4 {[%emt 0:0:16]} g6 {[%emt 0:0:5]} 3. Nc3 {[%emt 0:0:3]} d5 {[%emt 0:0:4]} 4. cxd5 {[%emt 0:0:5]} Nxd5 {[%emt 0:0:4]} 5. e4 {[%emt 0:0:6]} Nxc3 {[%emt 0:0:5]} 6. bxc3 {[%emt 0:0:3]} Bg7 {[%emt 0:0:7]} 7. Nf3 {[%emt 0:0:13]} c5 {[%emt 0:0:5]} 8. Bb5+ {[%emt 0:0:3]} Nc6 {[%emt 0:0:28]} 9. O-O {[%emt 0:0:6]} O-O {[%emt 0:0:19]} 10. Bxc6 {[%emt 0:0:33]} bxc6 {[%emt 0:0:10]} 11. Qc2 {[%emt 0:0:7]} Bg4 {[%emt 0:15:33]} 12. Ne5 {[%emt 0:0:5]} Bxe5 {[%emt 0:3:33]} 13. dxe5 {[%emt 0:0:7]} Qc7 {[%emt 0:2:33]} 14. Bh6 {[%emt 0:8:47]} Rfd8 {[%emt 0:4:21]} 15. f4 {[%emt 0:3:45]} c4 {[%emt 0:8:26]} 16. Rab1 {[%emt 0:17:41]} Rd3 {[%emt 0:19:55]} 17. Qf2 {[%emt 0:6:25]} Rad8 {[%emt 0:6:52]} 18. Qh4 {[%emt 0:3:5]} Be2 {[%emt 0:5:18]} 19. Rfe1 {[%emt 0:1:39]} Rd1 {[%emt 0:1:45]} 20. Rexd1 {[%emt 0:4:6]} Rxd1+ {[%emt 0:0:39]} 21. Rxd1 {[%emt 0:0:5]} Bxd1 {[%emt 0:0:12]} 22. h3 {[%emt 0:0:49]} Bc2 {[%emt 0:3:4]} 23. Bg5 {[%emt 0:12:56]} Qb6+ {[%emt 0:5:12]} 24. Kh2 {[%emt 0:3:52]} Bxe4 {[%emt 0:2:7]} 25. Bxe7 {[%emt 0:6:20]} Qb2 {[%emt 0:0:25]} 26. Qg3 {[%emt 0:0:51]} Qe2 {[%emt 0:9:43]} 27. Bc5 {[%emt 0:3:21]} Qxa2 {[%emt 0:2:6]} 28. e6 {[%emt 0:4:50]} f6 {[%emt 0:5:0]} 29. f5 {[%emt 0:0:27]} h5 {[%emt 0:7:11]} 30. Qxg6+ {[%emt 0:0:14]} Kh8 {[%emt 0:0:8]} 31. Qxf6+ {[%emt 0:0:6]} Kh7 {[%emt 0:0:9]} 32. Qg6+ {[%emt 0:0:4]} Kh8 {[%emt 0:0:7]} 1/2-1/2

[Event "57th Biel Festival MTO 2024"]
[White "Malli,Shiivesh Sunil"]
[Black "Kaiser,Elmar"]
[Site "Biel"]
[Round "4.58"]
[Annotator "RC"]
[Result "1/2-1/2"]
[Date "2024.07.18"]
[WhiteElo "1916"]
[BlackElo "2116"]
[PlyCount "37"]
[TimeControl "60"]

1. c4 {[%emt 0:0:7]} e5 {[%emt 0:14:48]} 2. Nc3 {[%emt 0:0:0]} Nf6 {[%emt 0:0:30]} 3. g3 {[%emt 0:0:0]} d5 {[%emt 0:0:30]} 4. cxd5 {[%emt 0:0:0]} Nxd5 {[%emt 0:0:30]} 5. Bg2 {[%emt 0:0:22]} Nb6 {[%emt 0:0:30]} 6. Nf3 {[%emt 0:0:30]} Nc6 {[%emt 0:0:30]} 7. d3 {[%emt 0:0:30]} Be7 {[%emt 0:0:30]} 8. O-O {[%emt 0:0:30]} O-O {[%emt 0:0:30]} 9. a3 {[%emt 0:0:30]} Be6 {[%emt 0:0:30]} 10. b4 {[%emt 0:0:30]} f6 {[%emt 0:0:30]} 11. Rb1 {[%emt 0:0:30]} a5 {[%emt 0:17:47]} 12. b5 {[%emt 0:15:10]} Nd4 {[%emt 0:0:30]} 13. e3 {[%emt 0:0:30]} Nxf3+ {[%emt 0:0:30]} 14. Bxf3 {[%emt 0:0:30]} Rb8 {[%emt 0:0:30]} 15. d4 {[%emt 0:0:30]} exd4 {[%emt 0:0:30]} 16. exd4 {[%emt 0:24:23]} Nd5 {[%emt 0:0:30]} 17. Qe1 {[%emt 0:0:30]} Kf7 {[%emt 0:0:30]} 18. Nxd5 {[%emt 0:0:30]} h6 {[%emt 0:41:34]} 19. h4 {[%emt 0:39:2]} 1/2-1/2

[Event "57th Biel Festival MTO 2024"]
[White "Tarini Goyal"]
[Black "Kheerthi Ganta"]
[Site "Biel"]
[Round "4.59"]
[Annotator "NA RC"]
[Result "1/2-1/2"]
[Date "2024.07.18"]
[WhiteElo "2079"]
[BlackElo "1987"]
[PlyCount "27"]
[TimeControl "60"]

1. d4 {[%emt 0:4:5]} Nf6 {[%emt 0:0:29]} 2. c4 {[%emt 0:0:10]} e6 {[%emt 0:5:29]} 3. Nc3 {[%emt 0:2:40]} Bb4 {[%emt 0:0:30]} 4. Nf3 {[%emt 0:0:30]} d5 {[%emt 0:0:30]} 5. g3 {[%emt 0:0:30]} O-O {[%emt 0:0:30]} 6. Bg2 {[%emt 0:0:30]} dxc4 {[%emt 0:0:30]} 7. O-O {[%emt 0:0:30]} c5 {[%emt 0:2:45]} 8. dxc5 {[%emt 0:7:2]} Qa5 {[%emt 0:0:30]} 9. Bg5 {[%emt 0:0:30]} Bxc3 {[%emt 0:10:54]} 10. bxc3 {[%emt 0:19:48]} Qxc5 {[%emt 0:0:30]} 11. Bxf6 {[%emt 0:0:30]} gxf6 {[%emt 0:0:30]} 12. Qd2 {[%emt 0:0:30]} Kg7 {[%emt 0:3:20]} 13. Qf4 {[%emt 0:4:35]} Kh8 {[%emt 0:0:10]} 14. Qg4 {[%emt 0:2:48]} 1/2-1/2

[Event "57th Biel Festival MTO 2024"]
[White "Panda,Barnabas"]
[Black "Stevens,Christian"]
[Site "Biel"]
[Round "4.60"]
[Annotator "NA RC"]
[Result "1-0"]
[Date "2024.07.18"]
[WhiteElo "2074"]
[BlackElo "1936"]
[PlyCount "59"]
[TimeControl "60"]

1. d4 {[%emt 0:0:5]} Nf6 {[%emt 0:0:11]} 2. c4 {[%emt 0:0:16]} g6 {[%emt 0:0:4]} 3. Nc3 {[%emt 0:0:8]} Bg7 {[%emt 0:0:6]} 4. e4 {[%emt 0:0:14]} d6 {[%emt 0:0:5]} 5. h3 {[%emt 0:0:9]} O-O {[%emt 0:0:9]} 6. Be3 {[%emt 0:0:9]} e5 {[%emt 0:0:7]} 7. d5 {[%emt 0:0:6]} a5 {[%emt 0:0:11]} 8. g4 {[%emt 0:0:14]} Na6 {[%emt 0:0:8]} 9. Nge2 {[%emt 0:0:9]} Nd7 {[%emt 0:3:48]} 10. Ng3 {[%emt 0:0:13]} Ndc5 {[%emt 0:1:8]} 11. Qd2 {[%emt 0:3:2]} f5 {[%emt 0:8:16]} 12. gxf5 {[%emt 0:3:41]} gxf5 {[%emt 0:0:25]} 13. exf5 {[%emt 0:0:13]} Bxf5 {[%emt 0:1:29]} 14. Nxf5 {[%emt 0:0:12]} Rxf5 {[%emt 0:0:11]} 15. O-O-O {[%emt 0:5:45]} Qf8 {[%emt 0:15:50]} 16. Rg1 {[%emt 0:7:44]} Kh8 {[%emt 0:0:56]} 17. Be2 {[%emt 0:1:33]} Re8 {[%emt 0:11:42]} 18. Rg2 {[%emt 0:4:58]} Re7 {[%emt 0:3:34]} 19. Rdg1 {[%emt 0:2:1]} Nb4 {[%emt 0:5:57]} 20. Kb1 {[%emt 0:8:2]} e4 {[%emt 0:4:49]} 21. Nb5 {[%emt 0:18:6]} Nbd3 {[%emt 0:2:39]} 22. Nd4 {[%emt 0:3:33]} Rfe5 {[%emt 0:7:34]} 23. Bh6 {[%emt 0:3:34]} e3 {[%emt 0:4:33]} 24. Bxe3 {[%emt 0:1:11]} Rxe3 {[%emt 0:3:40]} 25. fxe3 {[%emt 0:0:40]} Ne5 {[%emt 0:2:39]} 26. Qc2 {[%emt 0:4:19]} Rf7 {[%emt 0:2:7]} 27. Ne6 {[%emt 0:3:2]} Nxe6 {[%emt 0:0:36]} 28. dxe6 {[%emt 0:0:8]} Re7 {[%emt 0:0:19]} 29. Bh5 {[%emt 0:0:33]} Qf6 {[%emt 0:1:50]} 30. Bf7 {[%emt 0:2:5]} 1-0

[Event "57th Biel Festival MTO 2024"]
[White "Pinelli,Gian"]
[Black "Pappier,Carlos"]
[Site "Biel"]
[Round "4.61"]
[Annotator "RC"]
[Result "1/2-1/2"]
[Date "2024.07.18"]
[WhiteElo "1874"]
[BlackElo "2202"]
[PlyCount "62"]
[TimeControl "60"]

1. d4 {[%emt 0:0:5]} d5 {[%emt 0:1:19]} 2. c4 {[%emt 0:0:31]} c6 {[%emt 0:0:30]} 3. Nc3 {[%emt 0:0:6]} Nf6 {[%emt 0:0:31]} 4. Nf3 {[%emt 0:0:6]} dxc4 {[%emt 0:0:39]} 5. a4 {[%emt 0:0:6]} e6 {[%emt 0:0:21]} 6. e3 {[%emt 0:1:10]} c5 {[%emt 0:0:12]} 7. Bxc4 {[%emt 0:0:44]} Nc6 {[%emt 0:0:24]} 8. O-O {[%emt 0:2:6]} Be7 {[%emt 0:1:11]} 9. dxc5 {[%emt 0:10:5]} Bxc5 {[%emt 0:3:42]} 10. Qxd8+ {[%emt 0:1:25]} Kxd8 {[%emt 0:0:27]} 11. Rd1+ {[%emt 0:0:52]} Ke7 {[%emt 0:0:10]} 12. e4 {[%emt 0:1:32]} Ng4 {[%emt 0:3:38]} 13. Bg5+ {[%emt 0:2:58]} f6 {[%emt 0:0:48]} 14. Bh4 {[%emt 0:0:8]} Bd7 {[%emt 0:1:15]} 15. Bg3 {[%emt 0:3:19]} Rac8 {[%emt 0:3:6]} 16. Bb5 {[%emt 0:6:39]} a6 {[%emt 0:4:57]} 17. Bf1 {[%emt 0:13:48]} Rhd8 {[%emt 0:4:24]} 18. Rac1 {[%emt 0:3:21]} Nce5 {[%emt 0:9:57]} 19. h3 {[%emt 0:9:25]} Nxf3+ {[%emt 0:1:0]} 20. gxf3 {[%emt 0:0:2]} Ne5 {[%emt 0:1:57]} 21. Kg2 {[%emt 0:1:26]} Be8 {[%emt 0:15:50]} 22. Rxd8 {[%emt 0:5:13]} Kxd8 {[%emt 0:0:51]} 23. f4 {[%emt 0:4:28]} Nc6 {[%emt 0:4:31]} 24. f5 {[%emt 0:3:3]} exf5 {[%emt 0:1:52]} 25. exf5 {[%emt 0:3:49]} Nd4 {[%emt 0:3:27]} 26. Nd5 {[%emt 0:7:18]} Bxa4 {[%emt 0:3:4]} 27. Bc7+ {[%emt 0:0:45]} Rxc7 {[%emt 0:0:57]} 28. Nxc7 {[%emt 0:0:9]} Bc6+ {[%emt 0:1:0]} 29. Kg1 {[%emt 0:0:56]} Nf3+ {[%emt 0:3:59]} 30. Kg2 {[%emt 0:0:32]} Nd4+ {[%emt 0:1:10]} 31. Kg1 {[%emt 0:0:28]} Nf3+ {[%emt 0:0:46]} 1/2-1/2

[Event "57th Biel Festival MTO 2024"]
[White "Arbinger,Roland"]
[Black "Hornung,Hans"]
[Site "Biel"]
[Round "4.62"]
[Annotator "NA RC"]
[Result "0-1"]
[Date "2024.07.18"]
[WhiteElo "2013"]
[BlackElo "2009"]
[PlyCount "20"]
[TimeControl "60"]

1. d4 {[%emt 0:0:4]} Nf6 {[%emt 0:6:50]} 2. c4 {[%emt 0:0:21]} e6 {[%emt 0:0:10]} 3. Nf3 {[%emt 0:0:40]} c5 {[%emt 0:0:51]} 4. e3 {[%emt 0:2:44]} d5 {[%emt 0:0:13]} 5. cxd5 {[%emt 0:1:16]} exd5 {[%emt 0:0:22]} 6. dxc5 {[%emt 0:4:5]} Bxc5 {[%emt 0:0:27]} 7. Bb5+ {[%emt 0:0:22]} Nc6 {[%emt 0:5:38]} 8. Rf1 {[%emt 0:3:2]} O-O {[%emt 0:0:22]} 9. h3 {[%emt 0:3:41]} Qd6 {[%emt 0:4:31]} 10. Ne5 {[%emt 0:16:3]} h6 {[%emt 0:34:6]} 0-1

[Event "57th Biel Festival MTO 2024"]
[White "Udelnov,Valentin"]
[Black "Douguet,Claude"]
[Site "Biel"]
[Round "4.63"]
[Annotator "ChessBase"]
[Result "1-0"]
[Date "2024.07.18"]
[WhiteElo "1965"]
[BlackElo "1994"]
[PlyCount "67"]
[TimeControl "60"]

1. e4 {[%emt 0:0:6]} e5 {[%emt 0:0:4]} 2. Nf3 {[%emt 0:0:6]} Nc6 {[%emt 0:0:4]} 3. Bc4 {[%emt 0:0:5]} Nf6 {[%emt 0:0:10]} 4. d3 {[%emt 0:0:5]} h6 {[%emt 0:1:29]} 5. O-O {[%emt 0:0:10]} d6 {[%emt 0:0:4]} 6. a4 {[%emt 0:0:49]} g5 {[%emt 0:0:20]} 7. Nc3 {[%emt 0:0:33]} Bg7 {[%emt 0:0:53]} 8. a5 {[%emt 0:6:29]} a6 {[%emt 0:0:4]} 9. Re1 {[%emt 0:7:49]} O-O {[%emt 0:1:30]} 10. Be3 {[%emt 0:5:23]} Re8 {[%emt 0:4:2]} 11. Nd2 {[%emt 0:5:41]} Be6 {[%emt 0:17:28]} 12. Nf1 {[%emt 0:16:27]} d5 {[%emt 0:6:36]} 13. exd5 {[%emt 0:6:54]} Nxd5 {[%emt 0:0:46]} 14. Nxd5 {[%emt 0:0:42]} Bxd5 {[%emt 0:0:8]} 15. Bxd5 {[%emt 0:0:27]} Qxd5 {[%emt 0:0:3]} 16. Ng3 {[%emt 0:0:54]} Ne7 {[%emt 0:21:59]} 17. Qg4 {[%emt 0:7:16]} Rf8 {[%emt 0:11:23]} 18. Qb4 {[%emt 0:2:10]} Nc6 {[%emt 0:25:12]} 19. Qg4 {[%emt 0:12:39]} Ne7 {[%emt 0:0:14]} 20. Nf5 {[%emt 0:5:15]} Qe6 {[%emt 0:0:49]} 21. Nxe7+ {[%emt 0:1:36]} Qxe7 {[%emt 0:0:2]} 22. Qc4 {[%emt 0:3:2]} Qd7 {[%emt 0:3:55]} 23. h4 {[%emt 0:3:9]} g4 {[%emt 0:1:3]} 24. Ra4 {[%emt 0:0:11]} h5 {[%emt 0:0:31]} 25. Rb4 {[%emt 0:0:17]} c6 {[%emt 0:1:1]} 26. Qb3 {[%emt 0:2:29]} Rfb8 {[%emt 0:4:19]} 27. Bg5 {[%emt 0:1:13]} Kh8 {[%emt 0:6:14]} 28. d4 {[%emt 0:5:46]} f6 {[%emt 0:1:33]} 29. Be3 {[%emt 0:2:24]} e4 {[%emt 0:0:17]} 30. Bf4 {[%emt 0:0:16]} Re8 {[%emt 0:1:0]} 31. Rxb7 {[%emt 0:0:10]} Qxd4 {[%emt 0:0:1]} 32. Qf7 {[%emt 0:0:28]} f5 {[%emt 0:1:26]} 33. Qxh5+ {[%emt 0:0:8]} Kg8 {[%emt 0:0:5]} 34. Bh6 {[%emt 0:0:36]} 1-0

[Event "57th Biel Festival MTO 2024"]
[White "Hartmann,Wolfgang"]
[Black "Stefan,Iulia-Cristiana"]
[Site "Biel"]
[Round "4.64"]
[Annotator "RC"]
[Result "1/2-1/2"]
[Date "2024.07.18"]
[WhiteElo "1983"]
[BlackElo "1953"]
[PlyCount "29"]
[TimeControl "60"]

1. c4 {[%emt 0:0:5]} e6 {[%emt 0:0:5]} 2. g3 {[%emt 0:0:16]} d5 {[%emt 0:0:5]} 3. Bg2 {[%emt 0:0:6]} Nf6 {[%emt 0:0:6]} 4. Nf3 {[%emt 0:0:7]} Bd6 {[%emt 0:0:6]} 5. O-O {[%emt 0:0:8]} O-O {[%emt 0:0:5]} 6. b3 {[%emt 0:0:18]} dxc4 {[%emt 0:0:11]} 7. bxc4 {[%emt 0:0:8]} e5 {[%emt 0:0:5]} 8. Nc3 {[%emt 0:8:38]} Re8 {[%emt 0:0:14]} 9. Bb2 {[%emt 0:15:40]} Na6 {[%emt 0:0:18]} 10. Ng5 {[%emt 0:6:13]} h6 {[%emt 0:7:21]} 11. Nge4 {[%emt 0:0:43]} Nxe4 {[%emt 0:0:48]} 12. Nxe4 {[%emt 0:0:10]} Bf8 {[%emt 0:0:28]} 13. d3 {[%emt 0:3:55]} Nc5 {[%emt 0:8:49]} 14. Qc2 {[%emt 0:5:1]} c6 {[%emt 0:24:59]} 15. Rab1 {[%emt 0:5:32]} 1/2-1/2

[Event "57th Biel Festival MTO 2024"]
[White "Jumabayev,Rinat"]
[Black "Aryan Chopra"]
[Site "Biel"]
[Round "5.1"]
[Annotator "ChessBase"]
[Result "1/2-1/2"]
[Date "2024.07.19"]
[WhiteElo "2575"]
[BlackElo "2631"]
[PlyCount "89"]
[TimeControl "60"]

1. d4 {[%emt 0:2:51]} d5 {[%emt 0:0:7]} 2. c4 {[%emt 0:0:8]} c6 {[%emt 0:0:4]} 3. Nc3 {[%emt 0:2:44]} Nf6 {[%emt 0:0:8]} 4. e3 {[%emt 0:0:5]} e6 {[%emt 0:0:18]} 5. Nf3 {[%emt 0:0:13]} Nbd7 {[%emt 0:0:6]} 6. Qc2 {[%emt 0:0:33]} Bd6 {[%emt 0:0:20]} 7. b3 {[%emt 0:2:11]} O-O {[%emt 0:2:2]} 8. Be2 {[%emt 0:0:7]} b6 {[%emt 0:0:49]} 9. O-O {[%emt 0:0:23]} Bb7 {[%emt 0:0:5]} 10. Bb2 {[%emt 0:0:41]} Re8 {[%emt 0:0:16]} 11. Rad1 {[%emt 0:1:20]} Qe7 {[%emt 0:0:33]} 12. Rfe1 {[%emt 0:0:56]} Rad8 {[%emt 0:0:43]} 13. Bf1 {[%emt 0:8:50]} c5 {[%emt 0:3:34]} 14. cxd5 {[%emt 0:2:22]} exd5 {[%emt 0:0:21]} 15. Qf5 {[%emt 0:14:10]} a6 {[%emt 0:5:43]} 16. dxc5 {[%emt 0:15:39]} bxc5 {[%emt 0:1:12]} 17. Nxd5 {[%emt 0:3:5]} Bxd5 {[%emt 0:26:45]} 18. Rxd5 {[%emt 0:0:30]} g6 {[%emt 0:3:1]} 19. Qg5 {[%emt 0:1:58]} Nxd5 {[%emt 0:0:13]} 20. Qxd5 {[%emt 0:0:7]} Ne5 {[%emt 0:1:56]} 21. Bxe5 {[%emt 0:8:24]} Bxe5 {[%emt 0:0:15]} 22. Qc4 {[%emt 0:1:44]} a5 {[%emt 0:5:49]} 23. Rc1 {[%emt 0:0:30]} Bd6 {[%emt 0:1:36]} 24. Qa4 {[%emt 0:8:52]} Qc7 {[%emt 0:5:7]} 25. g3 {[%emt 0:1:3]} Kg7 {[%emt 0:4:6]} 26. Rc2 {[%emt 0:2:4]} Qb7 {[%emt 0:2:55]} 27. Be2 {[%emt 0:8:21]} Qe4 {[%emt 0:10:5]} 28. Qxe4 {[%emt 0:1:55]} Rxe4 {[%emt 0:0:2]} 29. Nd2 {[%emt 0:1:20]} Rb4 {[%emt 0:0:49]} 30. a4 {[%emt 0:1:3]} f5 {[%emt 0:3:46]} 31. h4 {[%emt 0:5:23]} h6 {[%emt 0:1:50]} 32. Bc4 {[%emt 0:1:59]} g5 {[%emt 0:1:23]} 33. Nf3 {[%emt 0:1:37]} Kf6 {[%emt 0:1:2]} 34. Kf1 {[%emt 0:2:15]} Rb7 {[%emt 0:5:52]} 35. Bb5 {[%emt 0:1:16]} Re7 {[%emt 0:2:2]} 36. Rc4 {[%emt 0:1:8]} Re4 {[%emt 0:12:32]} 37. hxg5+ {[%emt 0:1:17]} hxg5 {[%emt 0:0:4]} 38. Rxe4 {[%emt 0:0:23]} fxe4 {[%emt 0:0:4]} 39. Nd2 {[%emt 0:0:6]} Kf5 {[%emt 0:0:9]} 40. Ke2 {[%emt 0:0:50]} Be5 {[%emt 0:0:55]} 41. Bc6 {[%emt 0:55:43]} Rxd2+ {[%emt 0:50:52]} 42. Kxd2 {[%emt 0:0:2]} g4 {[%emt 0:0:7]} 43. Kc2 {[%emt 0:0:5]} Bf6 {[%emt 0:0:20]} 44. Bd7+ {[%emt 0:0:6]} Kg5 {[%emt 0:0:5]} 45. Bc6 {[%emt 0:0:5]} 1/2-1/2

[Event "57th Biel Festival MTO 2024"]
[White "Kobo,Ori"]
[Black "Mendonca,Leon Luke"]
[Site "Biel"]
[Round "5.2"]
[Annotator "TA"]
[Result "0-1"]
[Date "2024.07.19"]
[WhiteElo "2529"]
[BlackElo "2634"]
[PlyCount "82"]
[TimeControl "60"]

{[%evp 9,82,20,33,14,38,24,37,25,14,24,25,31,31,33,37,0,29,15,29,13,19,0,0,0,43,29,15,16,28,22,23,0,24,0,0,0,-20,-53,-60,-66,-34,-30,0,-130,-130,-138,-142,-176,-190,-183,-171,-172,-186,-207,-185,-208,-188,-234,-234,-229,-220,-222,-233,-312,-312,-293,-212,-378,-389,-377,-372,-439,-439,-439,-438]} 1. e4 {[%emt 0:1:18]} c5 {[%emt 0:1:14]} 2. Nc3 {[%emt 0:0:25]} a6 {[%emt 0:0:46]} 3. Nge2 {[%emt 0:3:7]} d6 {[%emt 0:2:59]} 4. g3 {[%emt 0:0:37]} Nc6 {[%emt 0:0:10]} 5. Bg2 {[%emt 0:0:53]} e5 {[%emt 0:0:50]} 6. d3 {[%emt 0:3:33]} g6 {[%emt 0:14:7]} 7. h4 {[%emt 0:11:22][%cal Bh2h4,Bh4h5][%mdl 32]} h6 {[%emt 0:0:0]} 8. h5 {[%emt 0:3:6] White is slightly better.} g5 {[%emt 0:0:0]} 9. Nd5 {[%emt 0:4:27]} Bg7 {[%emt 0:0:0]} 10. f4 {[%emt 0:7:3]} gxf4 {[%emt 0:22:23]} 11. gxf4 {[%emt 0:0:16]} Nge7 {[%emt 0:2:23]} 12. Nec3 {[%emt 0:16:46]} Nxd5 {[%emt 0:8:7]} 13. Nxd5 {[%emt 0:0:40]} exf4 {[%emt 0:8:18]} 14. c3 {[%emt 0:7:2]} (14. Nxf4 Rg8 15. Qd2 Be5 $17 )Be5 {[%emt 0:5:0]} 15. Bxf4 {[%emt 0:2:11]} Bxf4 {[%emt 0:5:12]} 16. Nxf4 {[%emt 0:0:26]} Qg5 {[%emt 0:1:30]} 17. Qd2 {[%emt 0:1:59]} Bg4 {[%emt 0:5:58]} 18. Nd5 {[%emt 0:2:0] [#] Strongly threatening Qxg5.} Kf8 $1 {[%emt 0:1:32]} (18... Qxd2+ $6 19. Kxd2 O-O-O 20. Raf1 $16 )19. Qxg5 {[%emt 0:4:55]} hxg5 {[%emt 0:0:3]} 20. h6 {[%emt 0:2:22]} Ne7 {[%emt 0:8:25]} 21. Nf6 {[%emt 0:19:44]} Be6 {[%emt 0:0:11]} 22. O-O-O {[%emt 0:12:48][%cal Oe4e5]} Ng6 {[%emt 0:6:26][%cal Of8e7]} 23. Rh5 {[%emt 0:3:45]} Ke7 $1 {[%emt 0:2:8]} 24. Rf1 {[%emt 0:1:13]} Nf4 {[%emt 0:5:50]} ({Worse is} 24... Bxa2 25. c4 $16 (25. Rxg5 Rxh6 26. c4 Nf4 $11 ))25. Rxg5 {[%emt 0:0:13]} Nxg2 {[%emt 0:1:50]} 26. Rxg2 {[%emt 0:0:11] [#]} (26. Rh5 $1 $11 {remains equal.} Ne3 (26... Bxa2 27. Kd2 $18 )27. Rf4 )Bh3 $1 $36 {[%emt 0:0:6][%mdl 2048] Black is on the roll. Black continues to play with concentration.} 27. Nd5+ {[%emt 0:0:27]} Kf8 {[%emt 0:0:19]} 28. Rfg1 {[%emt 0:1:4]} Bxg2 {[%emt 0:0:3]} 29. Rxg2 {[%emt 0:0:6]} Rxh6 $19 {[%emt 0:0:8][%mdl 4096] Endgame. KRR-KRN} 30. a4 {[%emt 0:0:55]} Re8 {[%emt 0:1:17]} 31. Ne3 {[%emt 0:0:34]} Ree6 {[%emt 0:0:34]} 32. Nf5 {[%emt 0:0:13]} Reg6 {[%emt 0:2:16]} 33. Rf2 {[%emt 0:0:9]} (33. Rd2 {was worth a try.} )Rh3 {[%emt 0:0:37]} 34. Kc2 {[%emt 0:0:11]} Ke8 {[%emt 0:0:25]} 35. a5 {[%emt 0:0:49]} Kd7 {[%emt 0:0:18]} 36. Re2 {[%emt 0:1:1]} Rg1 {[%emt 0:0:50]} 37. Ne3 {[%emt 0:0:38]} Rgg3 {[%emt 0:1:1]} 38. Nd5 {[%emt 0:0:19]} (38. Nc4 )Rxd3 {[%emt 0:0:31]} 39. Rg2 {[%emt 0:0:22]} Rdg3 {[%emt 0:0:27]} 40. Rf2 {[%emt 0:0:26]} Rf3 {[%emt 0:0:7]} 41. Rg2 {[%emt 0:4:12]} Rh4 {[%emt 0:6:46] Weighted Error Value: White=0.23 (precise) /Black=0.08 (flawless) .  Mistake:       	White=3     	---        Inaccurate:     	White=3     	Black=3      OK:         	White=13    	Black=21     Best:        	White=1     	Black=2      Strong:       	---       	Black=3} 0-1